bitfinex/quotes_ETHUSD_20230110
["timestamp","ask_amount","ask_price","bid_price","bid_amount"]
[1673317501491,3.51000001,1325.0,1324.8,17.66560082]
[1673317501702,3.51000001,1325.0,1324.8,19.37660082]
[1673317502347,3.51000001,1325.0,1324.8,16.87660082]
[1673317502569,3.51000001,1325.0,1324.8,7.61730082]
[1673317502958,0.05,1324.9,1324.8,15.16560082]
[1673317503175,0.05,1324.9,1324.8,15.94319391]
[1673317503482,0.05,1324.9,1324.8,0.84659391]
[1673317503728,0.05,1324.9,1324.8,0.77759309]
[1673317505000,7.54773,1324.9,1324.7,1.695]
[1673317505159,7.55381,1324.9,1324.7,1.695]
[1673317505933,0.006,1324.9,1324.7,1.695]
[1673317506141,26.15835001,1325.0,1324.7,1.695]
[1673317506757,29.95601065,1325.0,1324.7,1.695]
[1673317507003,0.05,1324.9,1324.7,1.695]
[1673317507165,7.59781,1324.9,1324.7,1.695]
[1673317507374,7.60381,1324.9,1324.7,1.695]
[1673317509942,15.15162,1324.9,1324.7,1.695]
[1673317510321,18.94928064,1324.9,1324.7,1.695]
[1673317511168,18.89928064,1324.9,1324.7,1.695]
[1673317511996,3.79766064,1324.8,1324.7,1.695]
[1673317512213,11.34600064,1324.8,1324.6,11.20460122]
[1673317512569,3.80366064,1324.8,1324.6,0.80510122]
[1673317512786,3.79766064,1324.8,1324.6,3.7361004]
[1673317513286,11.34602064,1324.8,1324.6,3.7361004]
[1673317513499,11.35202064,1324.8,1324.6,3.7361004]
[1673317513728,9.35406743,1324.8,1324.6,3.7361004]
[1673317513882,1.80570743,1324.8,1324.6,3.7361004]
[1673317514112,1.79970743,1324.8,1324.6,3.7361004]
[1673317514305,9.34806743,1324.8,1324.6,3.7361004]
[1673317514525,9.35406743,1324.8,1324.6,3.7361004]
[1673317514942,1.80570743,1324.8,1324.6,3.7361004]
[1673317515145,1.79970743,1324.8,1324.6,21.95534324]
[1673317515386,11.68954001,1325.0,1324.6,22.02434406]
[1673317515584,3.79766064,1324.9,1324.8,2.99673056]
[1673317515796,11.34539064,1324.9,1324.8,2.99673056]
[1673317516047,18.89912064,1324.9,1324.8,2.99673056]
[1673317517689,11.35139064,1324.9,1324.8,2.99673056]
[1673317518470,18.89912064,1324.9,1324.8,2.99673056]
[1673317519743,7.55373,1324.9,1324.8,2.99673056]
[1673317519900,0.006,1324.9,1324.8,2.99673056]
[1673317520255,3.51000001,1325.0,1324.8,2.99673056]
[1673317520427,7.30766065,1325.0,1324.8,2.99673056]
[1673317520630,7.31366065,1325.0,1324.8,2.99673056]
[1673317521256,14.86083065,1325.0,1324.8,2.99673056]
[1673317521519,0.05,1324.9,1324.8,18.09278056]
[1673317521735,0.05,1324.9,1324.8,31.16813702]
[1673317521946,0.05,1324.9,1324.8,32.29203949]
[1673317522104,0.05,1324.9,1324.8,35.10149482]
[1673317522317,0.05,1324.9,1324.8,36.78734852]
[1673317522531,0.05,1324.9,1324.8,35.10149482]
[1673317522748,0.05,1324.9,1324.8,26.42959319]
[1673317522988,0.05,1324.9,1324.8,24.74373949]
[1673317523590,3.51000001,1325.0,1324.8,24.74373949]
[1673317523799,3.51000001,1325.0,1324.9,1.87279872]
[1673317525099,2.38631446,1325.0,1324.9,1.87279872]
[1673317525629,23.04434112,1325.0,1324.8,5.87518671]
[1673317525797,3.79766064,1324.9,1324.8,3.06573138]
[1673317526142,3.79766064,1324.9,1324.8,4.86984751]
[1673317526143,26.44085064,1324.9,1324.8,4.86984751]
[1673317526460,26.44685064,1324.9,1324.8,4.86984751]
[1673317527305,27.39643051,1324.9,1324.8,4.86984751]
[1673317529931,27.39643051,1324.9,1324.8,5.99374998]
[1673317530247,27.39643051,1324.9,1324.8,4.93884833]
[1673317530474,29.10743051,1324.9,1324.8,4.86984751]
[1673317531288,29.10743051,1324.9,1324.8,5.99374998]
[1673317531495,29.10743051,1324.9,1324.8,4.93884833]
[1673317531689,29.10743051,1324.9,1324.8,4.86984751]
[1673317533699,27.10948,1324.9,1324.8,4.86984751]
[1673317533873,27.38948,1324.9,1324.8,4.86984751]
[1673317535557,27.39840575,1324.9,1324.8,2.99673056]
[1673317538239,27.34840575,1324.9,1324.8,2.99673056]
[1673317545490,29.03936452,1324.9,1324.8,2.99673056]
[1673317549032,25.57501216,1324.9,1324.8,2.99673056]
[1673317549888,7.43561941,1324.9,1324.8,2.99673056]
[1673317550094,14.98334941,1324.9,1324.8,2.99673056]
[1673317550533,20.82007941,1324.9,1324.8,2.99673056]
[1673317551175,15.10146,1324.9,1324.8,2.99673056]
[1673317551392,7.55373,1324.9,1324.8,2.99673056]
[1673317553141,0.006,1324.9,1324.8,10.8516037]
[1673317553351,2.38631446,1325.0,1324.8,10.92060452]
[1673317554286,2.38631446,1325.0,1324.8,18.46890452]
[1673317554508,0.05,1324.9,1324.8,18.46890452]
[1673317554858,2.38631446,1325.0,1324.8,18.46890452]
[1673317555980,2.38631446,1325.0,1324.8,26.01720452]
[1673317556190,2.38631446,1325.0,1324.8,18.46890452]
[1673317556915,2.38831446,1325.0,1324.9,1.711]
[1673317557129,2.38631446,1325.0,1324.9,26.94991037]
[1673317557463,0.38858333,1325.0,1324.9,28.89177152]
[1673317559328,0.38858333,1325.0,1324.9,28.89175849]
[1673317562165,0.38858333,1325.0,1324.9,37.53488166]
[1673317562381,0.38858333,1325.0,1324.9,38.10118166]
[1673317562588,0.38858333,1325.0,1324.9,36.97727919]
[1673317562793,0.38858333,1325.0,1324.9,17.17092312]
[1673317563004,0.38858333,1325.0,1324.9,1.77900082]
[1673317563328,0.38858333,1325.0,1324.9,1.71]
[1673317563581,0.38858333,1325.0,1324.9,9.25773]
[1673317563796,0.38858333,1325.0,1324.9,9.32673082]
[1673317565152,2.819,1325.0,1324.9,9.32673082]
[1673317565962,2.819,1325.0,1324.9,0.06900082]
[1673317566170,2.819,1325.0,1324.8,7.89264194]
[1673317566425,2.819,1325.0,1324.8,5.08330452]
[1673317566810,2.819,1325.0,1324.8,12.63160452]
[1673317567005,2.819,1325.0,1324.8,15.44094194]
[1673317567457,2.819,1325.0,1324.8,7.89264194]
[1673317567674,2.819,1325.0,1324.8,5.08330452]
[1673317568996,2.869,1325.0,1324.8,5.08330452]
[1673317569250,2.819,1325.0,1324.8,5.08330452]
[1673317569477,2.819,1325.0,1324.8,4.77673138]
[1673317569631,2.819,1325.0,1324.8,12.25586056]
[1673317569839,2.819,1325.0,1324.8,7.5860688]
[1673317570096,2.819,1325.0,1324.8,4.77673138]
[1673317570311,2.819,1325.0,1324.8,4.70773056]
[1673317572370,10.36626,1325.0,1324.8,4.70773056]
[1673317572578,10.37226,1325.0,1324.8,4.70773056]
[1673317573204,2.825,1325.0,1324.8,4.70773056]
[1673317573452,2.819,1325.0,1324.8,4.70773056]
[1673317574202,2.819,1325.0,1324.8,12.25590056]
[1673317574376,2.819,1325.0,1324.8,16.35932977]
[1673317574583,2.819,1325.0,1324.8,19.16886436]
[1673317575109,2.819,1325.0,1324.8,16.35932977]
[1673317575844,2.819,1325.0,1324.8,31.45592977]
[1673317576063,2.819,1325.0,1324.9,18.6792927]
[1673317576306,2.819,1325.0,1324.9,30.19322162]
[1673317576492,2.819,1325.0,1324.9,33.00267772]
[1673317577126,2.819,1325.0,1324.9,31.29167772]
[1673317577339,0.87133062,1325.0,1324.9,31.29167772]
[1673317577562,0.82133062,1325.0,1324.9,31.29167772]
[1673317578087,0.82133062,1325.0,1324.9,33.00267772]
[1673317578722,0.82133062,1325.0,1324.9,25.45494772]
[1673317579038,0.82133062,1325.0,1324.9,22.64549162]
[1673317581419,0.82133062,1325.0,1324.9,30.19322162]
[1673317581633,0.82133062,1325.0,1324.9,33.00267772]
[1673317582278,0.82133062,1325.0,1324.9,25.45494772]
[1673317583101,0.82133062,1325.0,1324.9,22.64549162]
[1673317583574,0.82133062,1325.0,1324.9,30.19322162]
[1673317585531,0.82133062,1325.0,1324.9,33.00248165]
[1673317590855,0.82133062,1325.0,1324.9,48.97437018]
[1673317591030,0.82133062,1325.0,1324.9,52.360972]
[1673317591433,9.86765877,1325.4,1325.0,4.14266124]
[1673317591645,10.37375877,1325.4,1325.3,1.711]
[1673317591858,2.26305877,1325.4,1325.3,24.34738]
[1673317592064,2.25705877,1325.4,1325.3,24.41638082]
[1673317592391,2.25705877,1325.4,1325.3,1.78000082]
[1673317592392,4.51392636,1325.4,1325.3,1.78000082]
[1673317592588,2.25705877,1325.4,1325.3,1.711]
[1673317593229,1.69095877,1325.4,1325.3,1.711]
[1673317594072,3.93993586,1325.4,1325.2,7.61501082]
[1673317594263,2.25705877,1325.3,1325.2,0.06900082]
[1673317594468,2.25705877,1325.3,1325.1,0.06900082]
[1673317594667,1.69095877,1325.2,1325.0,1.71166206]
[1673317594883,1.69095877,1325.2,1325.0,1.64266124]
[1673317595141,15.0932,1325.1,1325.0,1.64266124]
[1673317595301,15.6654,1325.1,1325.0,1.64266124]
[1673317595510,24.33675877,1325.1,1325.0,1.64266124]
[1673317595771,27.81336141,1325.1,1325.0,1.64266124]
[1673317596200,20.26676141,1325.1,1325.0,1.64266124]
[1673317597756,35.56388964,1325.1,1325.0,1.64266124]
[1673317597930,35.23334777,1325.1,1325.0,1.64266124]
[1673317598141,34.12326328,1325.1,1325.0,1.64266124]
[1673317598599,36.94660716,1325.1,1325.0,1.64266124]
[1673317598981,34.12326328,1325.1,1325.0,1.64266124]
[1673317599237,34.12326328,1325.1,1324.6,0.80510122]
[1673317599565,22.6449,1324.8,1324.6,0.7361004]
[1673317599731,22.6509,1324.8,1324.6,0.7361004]
[1673317599940,26.01590007,1324.8,1324.6,0.7361004]
[1673317604042,26.58220007,1324.8,1324.6,0.7361004]
[1673317604398,26.01590007,1324.8,1324.6,0.7361004]
[1673317605540,29.81356071,1324.8,1324.6,0.7361004]
[1673317607327,31.50756071,1324.8,1324.6,0.7361004]
[1673317607752,3.79766064,1324.7,1324.6,0.7361004]
[1673317607912,34.19319278,1324.7,1324.6,0.7361004]
[1673317608124,35.89316343,1324.7,1324.6,0.7361004]
[1673317608679,34.19919278,1324.7,1324.6,0.7361004]
[1673317609616,11.55258278,1324.7,1324.6,0.7361004]
[1673317612256,8.02206064,1324.7,1324.6,0.7361004]
[1673317616053,9.05881127,1324.7,1324.6,0.7361004]
[1673317619476,9.05881127,1324.7,1324.6,0.73295316]
[1673317625450,7.34781127,1324.7,1324.6,0.73295316]
[1673317627340,9.05281127,1324.7,1324.6,0.73295316]
[1673317627548,11.14150497,1324.7,1324.6,0.73295316]
[1673317628137,9.43050497,1324.7,1324.6,0.73295316]
[1673317631962,11.43050497,1324.7,1324.6,0.73295316]
[1673317632180,9.43050497,1324.7,1324.6,0.73295316]
[1673317632331,9.43050497,1324.7,1324.6,0.63295316]
[1673317632881,11.93050497,1324.7,1324.6,0.63295316]
[1673317633102,9.43050497,1324.7,1324.6,0.63295316]
[1673317634156,8.86410497,1324.7,1324.6,0.63295316]
[1673317634337,11.36410497,1324.7,1324.6,0.63295316]
[1673317634547,13.05807562,1324.7,1324.6,0.63295316]
[1673317634958,15.31670315,1324.7,1324.6,0.63295316]
[1673317635172,13.05807562,1324.7,1324.6,0.63295316]
[1673317635382,15.31670315,1324.7,1324.6,0.63295316]
[1673317635643,28.36341691,1324.7,1324.6,0.63295316]
[1673317635833,28.36341691,1324.7,1324.6,0.00095316]
[1673317635834,37.92859091,1324.7,1324.6,0.00095316]
[1673317636030,34.18987833,1324.7,1324.6,0.00095316]
[1673317636239,37.93203979,1324.7,1324.6,0.00095316]
[1673317636853,34.94475695,1324.7,1324.6,0.00095316]
[1673317637106,34.9474992,1324.7,1324.6,0.00095316]
[1673317643216,31.56438359,1324.7,1324.6,0.00095316]
[1673317643532,29.85338359,1324.7,1324.6,0.00095316]
[1673317644104,30.96532734,1324.7,1324.6,0.00095316]
[1673317644583,28.14838359,1324.7,1324.6,0.00095316]
[1673317644949,30.96574292,1324.7,1324.6,0.00095316]
[1673317646250,32.26574292,1324.7,1324.6,0.00095316]
[1673317646429,17.29574292,1324.7,1324.6,0.00095316]
[1673317646987,25.23774292,1324.7,1324.6,0.00095316]
[1673317647734,25.8034992,1324.7,1324.6,0.00095316]
[1673317648942,22.42038359,1324.7,1324.6,0.00095316]
[1673317650984,25.8034992,1324.7,1324.6,0.00095316]
[1673317653397,14.47838359,1324.7,1324.6,0.00095316]
[1673317653563,16.54146938,1324.7,1324.6,0.00095316]
[1673317653770,15.97506938,1324.7,1324.6,0.00095316]
[1673317655028,15.97517502,1324.7,1324.6,0.00095316]
[1673317656453,0.00251031,1324.6,1324.3,1.86586357]
[1673317656638,1.12746406,1324.5,1324.3,3.40495653]
[1673317657348,2.42746406,1324.5,1324.3,3.40495653]
[1673317658206,2.42746406,1324.5,1324.3,1.70695653]
[1673317660962,2.42746406,1324.5,1324.3,6.91795653]
[1673317661283,1.3,1324.5,1324.4,2.2775]
[1673317661441,1.3,1324.5,1324.4,4.61634574]
[1673317662386,1.3,1324.5,1324.4,2.11634574]
[1673317665700,0.00251031,1324.6,1324.5,2.5]
[1673317665919,0.00451031,1324.6,1324.5,3.14898705]
[1673317666107,0.00251031,1324.6,1324.5,0.64898705]
[1673317668099,0.00251031,1324.6,1324.5,2.35998705]
[1673317670274,1.12997437,1324.6,1324.4,10.35184656]
[1673317670487,1.12997437,1324.6,1324.4,0.47434656]
[1673317670696,1.12997437,1324.6,1324.4,3.40534574]
[1673317670697,2.82117046,1324.6,1324.4,3.40534574]
[1673317672487,1.12746406,1324.5,1324.4,3.40534574]
[1673317672715,1.12746406,1324.5,1324.3,22.43865735]
[1673317672928,1.12746406,1324.5,1324.3,1.77595735]
[1673317672929,6.61632079,1324.5,1324.3,1.77595735]
[1673317673138,6.62232079,1324.5,1324.3,0.16786357]
[1673317673330,1.12746406,1324.4,1324.3,0.16786357]
[1673317673755,6.68232079,1324.5,1324.3,0.16786357]
[1673317673976,1.12746406,1324.4,1324.3,0.16786357]
[1673317675570,1.12441225,1324.4,1324.3,0.16786357]
[1673317675975,4.92207289,1324.4,1324.3,0.16786357]
[1673317676198,5.15207289,1324.4,1324.3,0.16786357]
[1673317676428,5.15807289,1324.4,1324.3,0.16786357]
[1673317677744,6.84926898,1324.4,1324.3,0.16786357]
[1673317677950,5.15807289,1324.4,1324.3,0.16786357]
[1673317678194,6.84926898,1324.4,1324.3,0.16786357]
[1673317678423,5.15807289,1324.4,1324.3,0.16786357]
[1673317679114,6.84926898,1324.4,1324.3,0.16786357]
[1673317685046,10.05111586,1324.4,1324.3,0.16786357]
[1673317685210,14.57280735,1324.4,1324.3,0.16786357]
[1673317685424,14.57280735,1324.4,1324.3,1.29858934]
[1673317685425,13.06490572,1324.4,1324.3,1.29858934]
[1673317685633,13.06490572,1324.4,1324.3,0.16786357]
[1673317685634,28.61000175,1324.4,1324.3,0.16786357]
[1673317685840,31.04539322,1324.4,1324.1,0.16488392]
[1673317686088,7.1810717,1324.2,1324.1,0.16488392]
[1673317686259,26.33840025,1324.2,1324.1,0.16488392]
[1673317686490,29.56840025,1324.2,1324.1,0.16488392]
[1673317686680,28.9995468,1324.2,1324.1,0.16488392]
[1673317686892,26.72567578,1324.2,1324.1,0.16488392]
[1673317687259,11.23153203,1324.2,1324.1,0.16488392]
[1673317688414,12.35723339,1324.2,1324.1,0.16488392]
[1673317688730,9.55160153,1324.2,1324.1,0.16488392]
[1673317689101,11.23906938,1324.2,1324.1,0.16488392]
[1673317689305,9.55160153,1324.2,1324.1,0.16488392]
[1673317690196,11.23855144,1324.2,1324.1,0.16488392]
[1673317690412,9.55160153,1324.2,1324.1,0.16488392]
[1673317690724,15.36615914,1324.2,1324.1,0.16488392]
[1673317691094,17.86615914,1324.2,1324.1,0.16488392]
[1673317691411,15.61447255,1324.2,1324.1,0.16488392]
[1673317691639,17.86205435,1324.2,1324.1,0.16488392]
[1673317691978,32.065326,1324.2,1324.1,0.14839553]
[1673317692139,34.53020462,1324.2,1324.0,0.16786357]
[1673317692351,25.9496717,1324.1,1324.0,0.16786357]
[1673317692602,25.9496717,1324.1,1323.9,0.90707848]
[1673317692603,14.972,1324.0,1323.9,0.90707848]
[1673317692894,24.58703215,1324.0,1323.9,0.90707848]
[1673317693069,24.81703215,1324.0,1323.9,0.90707848]
[1673317693637,27.62284912,1324.0,1323.9,0.90707848]
[1673317694103,14.02834997,1324.0,1323.9,0.90707848]
[1673317694316,14.18446499,1324.0,1323.9,0.90707848]
[1673317694640,27.77789277,1324.0,1323.9,0.90707848]
[1673317695388,31.19989277,1324.0,1323.9,0.90707848]
[1673317695946,29.45477139,1324.0,1323.9,0.90707848]
[1673317696206,16.76169714,1324.0,1323.9,0.90707848]
[1673317696373,12.6125007,1324.0,1323.9,0.90707848]
[1673317696580,9.77114717,1324.0,1323.9,0.90707848]
[1673317696839,3.80366064,1324.0,1323.9,0.90707848]
[1673317697012,3.79766064,1324.0,1323.9,0.90707848]
[1673317698364,4.02766064,1324.0,1323.9,0.90707848]
[1673317704533,0.6326,1324.1,1323.9,2.61807848]
[1673317704534,0.066,1324.1,1323.9,2.61807848]
[1673317704748,3.79766064,1324.1,1324.0,1.698]
[1673317706477,0.066,1324.2,1324.0,1.698]
[1673317706682,5.8047456,1324.4,1324.1,1.702]
[1673317706683,1.18742778,1324.4,1324.1,1.702]
[1673317706909,3.79766064,1324.4,1324.2,1.711]
[1673317708006,4.91908842,1324.4,1324.2,1.711]
[1673317708220,3.79766064,1324.4,1324.1,2.0472]
[1673317708431,4.91908842,1324.4,1324.1,4.5472]
[1673317709029,4.91908842,1324.4,1324.1,2.0472]
[1673317709893,4.91908842,1324.4,1324.1,4.5472]
[1673317710529,6.60240624,1324.4,1324.1,4.5472]
[1673317710750,6.60840624,1324.4,1324.1,2.0472]
[1673317710909,4.92508842,1324.4,1324.1,2.0472]
[1673317711114,4.91908842,1324.4,1324.1,2.0472]
[1673317712245,4.91908842,1324.4,1324.1,4.5472]
[1673317712974,4.91908842,1324.4,1324.1,2.0472]
[1673317713764,4.91908842,1324.4,1324.1,4.5472]
[1673317714611,4.91908842,1324.4,1324.1,2.0472]
[1673317714814,6.60240624,1324.4,1324.1,2.0472]
[1673317715065,6.60840624,1324.4,1324.1,2.0472]
[1673317716975,1.12142778,1324.3,1324.1,2.0472]
[1673317717712,1.12142778,1324.3,1324.1,1.706]
[1673317718048,4.91908842,1324.3,1324.0,20.80990082]
[1673317719448,6.60240624,1324.3,1324.0,20.80990082]
[1673317719669,4.92508842,1324.3,1324.0,20.80990082]
[1673317719999,4.91908842,1324.3,1324.0,20.80990082]
[1673317720214,3.79766064,1324.2,1324.0,20.80990082]
[1673317720814,3.79766064,1324.2,1324.0,1.77900082]
[1673317721174,3.79766064,1324.2,1324.0,1.71]
[1673317722502,4.91908842,1324.2,1324.0,1.71]
[1673317722714,4.91908842,1324.2,1324.0,1.70655583]
[1673317722945,5.89952697,1324.2,1324.0,1.70655583]
[1673317723155,5.90552697,1324.2,1324.0,1.70655583]
[1673317723537,5.90552697,1324.2,1323.9,0.90707848]
[1673317723767,5.90552697,1324.2,1323.9,5.60507848]
[1673317723975,5.90552697,1324.2,1323.9,5.6740793]
[1673317725361,3.79766064,1324.1,1323.9,0.9760793]
[1673317725614,3.79766064,1324.1,1323.9,0.90707848]
[1673317727119,4.91908842,1324.1,1323.9,0.90707848]
[1673317727576,5.6839729,1324.1,1323.9,0.90707848]
[1673317727795,3.79766064,1324.0,1323.9,0.90707848]
[1673317727964,7.18778842,1324.0,1323.9,0.90707848]
[1673317728332,9.10710624,1324.0,1323.9,0.90707848]
[1673317728639,7.42378842,1324.0,1323.9,0.90707848]
[1673317728810,8.71694251,1324.0,1323.9,0.90707848]
[1673317729232,6.78494251,1324.0,1323.9,0.90707848]
[1673317729442,4.37036064,1324.0,1323.9,0.90707848]
[1673317729654,4.36436064,1324.0,1323.9,0.90707848]
[1673317729892,1.68812778,1324.0,1323.9,0.90707848]
[1673317731552,0.5667,1324.0,1323.9,0.90707848]
[1673317732590,1.68812778,1324.0,1323.9,0.90707848]
[1673317733633,6.13048858,1324.0,1323.9,0.90707848]
[1673317733884,8.0498064,1324.0,1323.9,0.90707848]
[1673317734052,6.92837862,1324.0,1323.9,0.90707848]
[1673317734679,9.17305013,1324.0,1323.9,0.90707848]
[1673317735116,7.48973231,1324.0,1323.9,0.90707848]
[1673317735462,15.70675639,1324.0,1323.9,0.90707848]
[1673317735681,18.20675639,1324.0,1323.9,0.90707848]
[1673317737457,48.41823639,1324.0,1323.9,0.90707848]
[1673317738407,45.61241942,1324.0,1323.9,0.90707848]
[1673317738727,48.42442922,1324.0,1323.9,0.90707848]
[1673317740718,45.92442922,1324.0,1323.9,0.90707848]
[1673317741243,48.92442922,1324.0,1323.9,0.90707848]
[1673317741460,2.5,1323.9,1323.7,0.1819875]
[1673317741621,37.65370064,1323.8,1323.7,0.1819875]
[1673317741998,40.47580651,1323.8,1323.7,0.1819875]
[1673317742198,43.28756384,1323.8,1323.7,0.1819875]
[1673317742576,43.28756384,1323.8,1323.6,0.1783187]
[1673317742577,52.09216797,1323.8,1323.6,0.1783187]
[1673317742809,13.49587429,1323.7,1323.4,0.18498851]
[1673317743023,37.07365566,1323.6,1323.4,0.18498851]
[1673317743346,26.46482064,1323.5,1323.4,0.18498851]
[1673317743560,26.46482064,1323.5,1323.4,0.12468851]
[1673317743561,26.47082064,1323.5,1323.4,0.12468851]
[1673317743783,26.70082064,1323.5,1323.4,0.12468851]
[1673317743927,28.39782064,1323.5,1323.4,0.12468851]
[1673317744140,33.20571096,1323.5,1323.4,0.12468851]
[1673317746782,8.84155096,1323.5,1323.4,0.12468851]
[1673317747007,4.03366064,1323.5,1323.4,0.12468851]
[1673317747195,4.02766064,1323.5,1323.4,0.12468851]
[1673317748085,11.58338064,1323.5,1323.4,0.12468851]
[1673317748238,11.58938064,1323.5,1323.4,0.12468851]
[1673317748602,0.006,1323.5,1323.4,1.35468851]
[1673317748943,7.5812,1323.7,1323.5,1.11906328]
[1673317749232,3.79766064,1323.6,1323.5,1.11906328]
[1673317750020,12.25047854,1323.6,1323.5,1.11906328]
[1673317750279,4.70132854,1323.6,1323.5,1.11906328]
[1673317750492,4.69532854,1323.6,1323.5,1.11906328]
[1673317751326,12.25047854,1323.6,1323.5,1.11906328]
[1673317751495,12.25647854,1323.6,1323.5,1.11906328]
[1673317753496,27.36677854,1323.6,1323.5,1.11906328]
[1673317753736,30.86493039,1323.6,1323.5,1.11906328]
[1673317754797,37.41432541,1323.6,1323.5,1.11906328]
[1673317755122,40.98112541,1323.6,1323.5,1.11906328]
[1673317755694,37.48112541,1323.6,1323.5,1.11906328]
[1673317757826,36.35773039,1323.6,1323.5,1.11906328]
[1673317758861,37.48112541,1323.6,1323.5,1.11906328]
[1673317759077,36.35773039,1323.6,1323.5,1.11906328]
[1673317759390,37.48112541,1323.6,1323.5,1.11906328]
[1673317759710,36.35773039,1323.6,1323.5,1.11906328]
[1673317760938,37.48112541,1323.6,1323.5,1.11906328]
[1673317765200,14.972,1323.5,1323.3,30.80510122]
[1673317765422,38.7678114,1323.4,1323.3,30.80510122]
[1673317765735,34.25882064,1323.4,1323.3,30.80510122]
[1673317768200,34.25882064,1323.4,1323.3,30.8051004]
[1673317768406,34.02882064,1323.4,1323.3,30.80510122]
[1673317772421,22.67487,1323.4,1323.3,30.80510122]
[1673317772658,15.11858,1323.4,1323.3,35.60011151]
[1673317772827,22.67487,1323.4,1323.3,35.60011151]
[1673317773257,26.47253064,1323.4,1323.3,33.90511151]
[1673317773477,27.5955214,1323.4,1323.3,30.80510122]
[1673317773687,29.28000753,1323.4,1323.3,30.80510122]
[1673317774007,27.5955214,1323.4,1323.3,30.80510122]
[1673317774646,29.28000753,1323.4,1323.3,30.80510122]
[1673317775035,27.5955214,1323.4,1323.3,30.80510122]
[1673317775247,29.28000753,1323.4,1323.3,30.80510122]
[1673317776618,28.15701677,1323.4,1323.3,30.80510122]
[1673317776818,30.40299828,1323.4,1323.3,30.80510122]
[1673317777609,28.15701677,1323.4,1323.3,30.80510122]
[1673317778336,29.28293273,1323.4,1323.3,30.80510122]
[1673317778552,28.15701677,1323.4,1323.3,30.80510122]
[1673317779083,16.24485742,1323.4,1323.3,30.80510122]
[1673317779233,16.24485742,1323.4,1323.3,33.90511151]
[1673317779710,23.80114742,1323.4,1323.3,33.90511151]
[1673317781342,23.80114742,1323.4,1323.3,30.80510122]
[1673317781552,27.59880806,1323.4,1323.3,30.80510122]
[1673317783027,26.47253064,1323.4,1323.3,30.80510122]
[1673317783387,27.59880806,1323.4,1323.3,30.80510122]
[1673317783913,20.04251806,1323.4,1323.3,30.80510122]
[1673317784078,18.91624064,1323.4,1323.3,30.80510122]
[1673317784441,0.006,1323.4,1323.3,58.27069151]
[1673317784598,3.70843145,1323.6,1323.3,60.14582792]
[1673317784807,7.50609209,1323.6,1323.3,61.27069151]
[1673317785017,5.82760596,1323.6,1323.3,61.27069151]
[1673317785275,7.51209209,1323.6,1323.3,46.15697151]
[1673317785453,7.51209209,1323.6,1323.3,53.71383151]
[1673317785912,15.06734209,1323.6,1323.3,46.15697151]
[1673317786086,0.05,1323.4,1323.3,46.15697151]
[1673317786300,0.05,1323.4,1323.3,38.60011151]
[1673317787646,0.05,1323.4,1323.3,53.71383151]
[1673317788067,0.05,1323.4,1323.3,61.27069151]
[1673317788325,3.71443145,1323.6,1323.3,46.15697151]
[1673317788593,2.02394532,1323.6,1323.4,1.711]
[1673317788803,2.02394532,1323.6,1323.4,30.50782915]
[1673317789054,2.02394532,1323.6,1323.4,30.57682997]
[1673317789657,3.70843145,1323.6,1323.4,7.90866997]
[1673317789883,2.02394532,1323.6,1323.4,10.40866997]
[1673317790098,2.02394532,1323.6,1323.4,7.90866997]
[1673317790431,2.02594532,1323.6,1323.4,7.90866915]
[1673317790640,11.26361145,1323.6,1323.4,7.90866997]
[1673317790950,9.58526532,1323.6,1323.4,7.90866997]
[1673317791117,2.02994532,1323.6,1323.4,1.78000082]
[1673317791322,2.02394532,1323.6,1323.4,1.711]
[1673317792180,9.57912532,1323.6,1323.4,1.711]
[1673317792413,9.58512532,1323.6,1323.4,1.711]
[1673317792790,2.02994532,1323.6,1323.5,1.711]
[1673317793062,2.02394532,1323.6,1323.5,13.920176]
[1673317793265,0.8976679,1323.6,1323.5,6.43345682]
[1673317793440,0.8976679,1323.6,1323.5,3.93345682]
[1673317793641,2.02394532,1323.6,1323.5,3.864456]
[1673317793852,2.02394532,1323.6,1323.5,1.711]
[1673317794081,0.8976679,1323.6,1323.5,1.711]
[1673317794415,0.8976679,1323.6,1323.5,4.211]
[1673317795635,1e-08,1323.6,1323.5,4.211]
[1673317796116,1e-08,1323.6,1323.5,2.922]
[1673317796276,1e-08,1323.6,1323.5,5.96571308]
[1673317796485,1e-08,1323.6,1323.5,31.7018739]
[1673317797415,1e-08,1323.6,1323.5,24.1461539]
[1673317797785,1e-08,1323.6,1323.5,31.7018739]
[1673317798530,2.87676355,1323.9,1323.5,38.63478289]
[1673317798840,1.12627742,1323.9,1323.8,3.422]
[1673317799049,2.81076355,1324.0,1323.8,5.275039]
[1673317799203,1.12627742,1324.0,1323.9,1.711]
[1673317799640,1.12627742,1324.0,1323.9,4.211]
[1673317800080,1.12627742,1324.0,1323.9,1.711]
[1673317800268,10.36363355,1324.0,1323.9,0.78440398]
[1673317800620,24.34909613,1324.0,1323.8,1.78000082]
[1673317800832,1.12526948,1323.9,1323.8,3.0]
[1673317800991,16.23214948,1323.9,1323.8,3.0]
[1673317801358,16.23214948,1323.9,1323.7,4.76400082]
[1673317801359,8.68470948,1323.9,1323.7,4.76400082]
[1673317801566,8.68470948,1323.9,1323.7,4.695]
[1673317801720,8.68470948,1323.9,1323.7,9.71248008]
[1673317802091,8.68470948,1323.9,1323.7,7.2814809]
[1673317802617,16.23814948,1323.9,1323.7,7.2814809]
[1673317802839,0.52623908,1323.8,1323.7,7.2814809]
[1673317802996,15.63425908,1323.8,1323.7,7.2814809]
[1673317803194,15.64025908,1323.8,1323.7,7.2814809]
[1673317803617,15.64025908,1323.8,1323.7,4.76400082]
[1673317803829,15.64025908,1323.8,1323.7,4.695]
[1673317805231,8.08624908,1323.8,1323.7,4.695]
[1673317806062,24.31953856,1323.8,1323.7,4.695]
[1673317806273,16.76552856,1323.8,1323.7,4.695]
[1673317806661,16.76552856,1323.8,1323.7,3.0]
[1673317807306,21.05725273,1323.8,1323.6,12.27580082]
[1673317807526,23.78900948,1323.7,1323.6,10.57380082]
[1673317807731,23.79500948,1323.7,1323.6,0.06900082]
[1673317807980,22.66974,1323.7,1323.5,1.706]
[1673317808168,15.11516,1323.7,1323.4,19.73030082]
[1673317808381,15.11516,1323.7,1323.4,23.59497212]
[1673317808714,15.11516,1323.7,1323.4,15.94377294]
[1673317809083,16.24042948,1323.7,1323.4,15.94377294]
[1673317809291,23.79500948,1323.7,1323.4,15.94377294]
[1673317809514,22.66716,1323.5,1323.4,10.36810082]
[1673317809762,22.67316,1323.5,1323.4,0.06900082]
[1673317810023,22.67316,1323.5,1323.3,0.7361004]
[1673317810137,3.79766064,1323.4,1323.3,0.7361004]
[1673317810351,29.1136127,1323.4,1323.3,0.7361004]
[1673317810558,29.1196127,1323.4,1323.3,0.7361004]